bitfinex-derivatives/quotes_BNBF0:USTF0_20250305
["timestamp","ask_amount","ask_price","bid_price","bid_amount"]
[1741171313182,0.33097239,604.28,603.4,0.52218405]
[1741171313584,3.09211598,604.27,603.4,0.52218405]
[1741171313788,0.33098335,604.26,603.4,0.52218405]
[1741171314589,3.09211598,604.25,603.4,0.52218405]
[1741171314790,0.3309943,604.24,603.4,0.52218405]
[1741171315384,1.18771389,604.23,603.4,0.52218405]
[1741171316190,1.18771389,604.22,603.4,0.52218405]
[1741171316584,0.33101074,604.21,603.4,0.52218405]
[1741171316994,1.18771389,604.2,603.4,0.52218405]
[1741171317188,0.33102169,604.19,603.4,0.52218405]
[1741171317687,1.18771389,604.18,603.4,0.52218405]
[1741171317894,0.33103265,604.17,603.4,0.52218405]
[1741171318390,0.28825963,604.16,603.4,0.52218405]
[1741171318595,0.33104361,604.15,603.4,0.52218405]
[1741171319095,1.18771389,604.14,603.4,0.52218405]
[1741171319292,0.33105457,604.13,603.4,0.52218405]
[1741171322304,0.2882095,604.12,603.4,0.52218405]
[1741171322503,0.33106553,604.11,603.4,0.52218405]
[1741171323103,3.09052503,604.1,603.4,0.52218405]
[1741171323300,0.33107649,604.09,603.4,0.52218405]
[1741171323510,3.42160152,604.09,603.4,0.52218405]
[1741171324108,3.09052503,604.08,603.4,0.52218405]
[1741171324299,0.33108745,604.07,603.4,0.52218405]
[1741171324902,3.09052503,604.06,603.4,0.52218405]
[1741171325506,3.09052503,604.05,603.4,0.52218405]
[1741171326104,3.09052503,604.04,603.4,0.52218405]
[1741171326608,0.33110938,604.03,603.4,0.52218405]
[1741171327005,3.42163441,604.03,603.4,0.52218405]
[1741171327601,3.09052503,604.02,603.4,0.52218405]
[1741171327903,3.42164537,604.01,603.4,0.52218405]
[1741171328311,0.28842687,604.0,603.4,0.52218405]
[1741171329108,3.09052503,603.99,603.4,0.52218405]
[1741171329611,3.42166182,603.98,603.4,0.52218405]
[1741171329812,0.33114227,603.97,603.4,0.52218405]
[1741171330410,3.09052503,603.96,603.4,0.52218405]
[1741171331215,0.33115324,603.95,603.4,0.52218405]
[1741171331510,0.61960402,603.95,603.4,0.52218405]
[1741171331810,3.09052503,603.94,603.4,0.52218405]
[1741171332214,3.42168923,603.93,603.4,0.52218405]
[1741171332605,2.23557178,603.92,603.4,0.52218405]
[1741171332805,0.33117517,603.91,603.4,0.52218405]
[1741171333009,3.4217002,603.91,603.4,0.52218405]
[1741171333204,3.09052503,603.9,603.4,0.52218405]
[1741171333410,0.33118614,603.89,603.4,0.52218405]
[1741171333917,3.09052503,603.88,603.4,0.52218405]
[1741171334116,0.33119711,603.87,603.4,0.52218405]
[1741171334912,1.90440209,603.86,603.4,0.52218405]
[1741171335105,0.33120808,603.85,603.4,0.52218405]
[1741171335307,0.33120808,603.85,603.4,0.27418405]
[1741171335512,3.09052503,603.84,603.4,0.27418405]
[1741171336311,3.09052503,603.83,603.4,0.27418405]
[1741171336913,1.18612294,603.82,603.4,0.27418405]
[1741171338110,1.18612294,603.81,603.4,0.27418405]
[1741171338318,1.18612294,603.8,603.4,0.27418405]
[1741171338913,1.18612294,603.79,603.4,0.27418405]
[1741171339114,1.18612294,603.78,603.4,0.27418405]
[1741171339615,1.18612294,603.77,603.4,0.27418405]
[1741171340116,3.08363544,603.76,603.4,0.27418405]
[1741171340319,3.3720922,603.76,603.4,0.27418405]
[1741171340810,1.8975125,603.75,603.4,0.27418405]
[1741171341010,3.08363544,603.75,603.4,0.27418405]
[1741171341715,3.08363544,603.74,603.4,0.27418405]
[1741171342020,3.08363544,603.73,603.4,0.27418405]
[1741171342518,3.08363544,603.72,603.4,0.27418405]
[1741171342923,1.18612294,603.71,603.4,0.27418405]
[1741171343420,1.18612294,603.7,603.4,0.27418405]
[1741171344017,0.28845676,603.76,603.4,0.27418405]
[1741171344018,1.18612294,603.69,603.4,0.27418405]
[1741171344522,1.18612294,603.68,603.4,0.27418405]
[1741171345121,1.18612294,603.67,603.4,0.27418405]
[1741171345315,1.4746048,603.67,603.4,0.27418405]
[1741171346027,1.18612294,603.66,603.4,0.27418405]
[1741171347027,0.28848186,603.67,603.4,0.27418405]
[1741171348120,1.89823251,603.83,603.4,0.27418405]
[1741171348318,0.2884209,603.72,603.4,0.27418405]
[1741171348718,1.89823251,603.83,603.4,0.27418405]
[1741171348918,1.89823251,603.82,603.4,0.27418405]
[1741171349219,1.18692793,603.81,603.4,0.27418405]
[1741171349421,1.47533807,603.81,603.4,0.27418405]
[1741171349924,1.18692793,603.8,603.4,0.27418405]
[1741171350527,0.28841014,603.81,603.4,0.27418405]
[1741171350528,1.18692793,603.79,603.4,0.27418405]
[1741171351220,1.18692793,603.78,603.4,0.27418405]
[1741171351421,1.47533448,603.78,603.4,0.27418405]
[1741171351823,1.18692793,603.77,603.4,0.27418405]
[1741171352124,1.18692793,603.76,603.4,0.27418405]
[1741171352627,0.33120808,603.85,603.4,0.27418405]
[1741171354522,1.18812891,603.84,603.4,0.27418405]
[1741171355430,1.47649723,603.83,603.4,0.27418405]
[1741171355822,1.18812891,603.82,603.4,0.27418405]
[1741171356828,3.09043653,603.81,603.4,0.27418405]
[1741171357430,1.47651873,603.8,603.4,0.27418405]
[1741171357628,3.09098813,603.79,603.4,0.27418405]
[1741171358023,1.90285922,603.78,603.4,0.27418405]
[1741171358223,3.09098813,603.78,603.4,0.27418405]
[1741171358430,3.09098813,603.77,603.4,0.27418405]
[1741171358630,0.33125745,603.76,603.4,0.27418405]
[1741171359431,3.09098813,603.75,603.4,0.27418405]
[1741171360531,0.28841253,603.74,603.4,0.27418405]
[1741171360731,1.47654144,603.74,603.4,0.27418405]
[1741171361232,0.33127391,603.73,603.4,0.27418405]
[1741171361627,3.09338984,603.72,603.4,0.27418405]
[1741171362132,3.09338984,603.71,603.4,0.27418405]
[1741171362329,3.42467472,603.71,603.4,0.27418405]
[1741171362733,3.09338984,603.7,603.4,0.27418405]
[1741171363129,3.4246857,603.69,603.4,0.27418405]
[1741171363327,0.33130135,603.68,603.4,0.27418405]
[1741171363733,3.09338984,603.67,603.4,0.27418405]
[1741171363932,0.33131232,603.66,603.4,0.27418405]
[1741171364633,3.09338984,603.65,603.4,0.27418405]
[1741171365034,3.09338984,603.64,603.4,0.27418405]
[1741171365528,1.90526093,603.64,603.4,0.27418405]
[1741171365729,0.33131232,603.66,603.4,0.27418405]
[1741171369635,1.19370073,603.65,603.4,0.27418405]
[1741171370136,0.28849502,603.64,603.4,0.27418405]
[1741171372135,0.33131232,603.66,603.4,0.27418405]
[1741171372331,1.19444922,603.63,603.4,0.27418405]
[1741171372836,1.19444922,603.62,603.4,0.27418405]
[1741171373330,0.28846154,603.61,603.4,0.27418405]
[1741171373934,0.33131232,603.66,603.4,0.27418405]
[1741171376541,1.19584371,603.65,603.4,0.27418405]
[1741171377440,1.19584371,603.64,603.4,0.27418405]
[1741171378441,1.19584371,603.63,603.4,0.27418405]
[1741171379044,1.19584371,603.62,603.4,0.27418405]
[1741171379543,1.19584371,603.61,603.4,0.27418405]
[1741171380043,1.19584371,603.6,603.4,0.27418405]
[1741171380442,1.19584371,603.59,603.4,0.27418405]
[1741171381344,1.19584371,603.58,603.4,0.27418405]
[1741171381644,1.4843172,603.58,603.4,0.27418405]
[1741171382142,1.19584371,603.57,603.4,0.27418405]
[1741171382746,1.19584371,603.56,603.4,0.27418405]
[1741171383150,1.19584371,603.55,603.4,0.27418405]
[1741171383447,1.19584371,603.54,603.4,0.27418405]
[1741171384148,0.33131232,603.66,603.4,0.27418405]
[1741171384449,0.28845676,603.6,603.4,0.27418405]
[1741171384846,1.19834277,603.59,603.4,0.27418405]
[1741171385456,0.33131232,603.66,603.4,0.27418405]
[1741171387351,1.19815719,603.65,603.4,0.27418405]
[1741171387951,1.19815719,603.64,603.4,0.27418405]
[1741171388151,1.19815719,603.63,603.4,0.27418405]
[1741171388653,1.19815719,603.62,603.4,0.27418405]
[1741171389046,1.19815719,603.61,603.4,0.27418405]
[1741171389752,0.33131232,603.66,603.4,0.27418405]
[1741171391852,1.19806567,603.65,603.4,0.27418405]
[1741171392956,0.33131232,603.66,603.4,0.27418405]
[1741171393253,1.4618607,605.05,603.4,0.27418405]
[1741171393455,0.33056212,605.03,603.4,0.27418405]
[1741171393754,3.11364618,605.02,603.4,0.27418405]
[1741171393953,0.33057851,605.0,603.4,0.27418405]
[1741171394455,0.28818324,604.99,603.4,0.27418405]
[1741171394657,3.40182942,604.99,603.4,0.27418405]
[1741171395154,3.11364618,604.98,603.4,0.27418405]
[1741171395556,3.11364618,604.97,603.4,0.27418405]
[1741171396350,3.11364618,604.96,603.4,0.27418405]
[1741171396548,0.3306113,604.94,603.4,0.52318405]
[1741171396752,3.11364618,604.93,603.4,0.52318405]
[1741171396949,0.33062769,604.91,603.4,0.52318405]
[1741171397454,3.40185687,604.9,603.4,0.52318405]
[1741171397649,0.33064409,604.88,603.4,0.52318405]
[1741171397853,3.11364618,604.87,603.4,0.52318405]
[1741171398053,0.33066049,604.85,603.4,0.52318405]
[1741171398357,3.11364618,604.84,603.4,0.52318405]
[1741171398558,0.33067689,604.82,603.4,0.52318405]
[1741171399357,3.40185449,604.81,603.4,0.52318405]
[1741171399655,0.33069329,604.79,603.4,0.52318405]
[1741171400359,3.11364618,604.78,603.4,0.52318405]
[1741171400566,0.3307097,604.76,603.4,0.52318405]
[1741171400967,3.11364618,604.75,603.4,0.52318405]
[1741171401163,0.3307261,604.73,603.4,0.52318405]
[1741171401768,3.11364618,604.72,603.4,0.52318405]
[1741171401968,0.33074251,604.7,603.4,0.52318405]
[1741171402169,3.11364618,604.69,603.4,0.52318405]
[1741171402469,0.33075892,604.67,603.4,0.52318405]
[1741171403472,3.11364618,604.66,603.4,0.52318405]
[1741171403777,0.33077533,604.64,603.4,0.52318405]
[1741171404367,3.11364618,604.63,603.4,0.52318405]
[1741171405273,3.11364618,604.62,603.4,0.52318405]
[1741171405868,3.11364618,604.61,603.4,0.52318405]
[1741171406371,3.11364618,604.6,603.4,0.52318405]
[1741171406774,3.11364618,604.59,603.4,0.52318405]
[1741171407278,3.11364618,604.58,603.4,0.52318405]
[1741171408178,3.11364618,604.57,603.4,0.52318405]
[1741171408477,3.40186165,604.57,603.4,0.52318405]
[1741171408972,3.11364618,604.56,603.4,0.52318405]
[1741171409882,3.11364618,604.55,603.4,0.52318405]
[1741171410582,3.11364618,604.54,603.4,0.52318405]
[1741171411076,3.11364618,604.53,603.4,0.52318405]
[1741171411585,3.11364618,604.52,603.4,0.52318405]
[1741171412282,0.28821547,604.57,603.4,0.52318405]
[1741171412480,3.10277121,604.51,603.4,0.52318405]
[1741171413381,3.10277121,604.5,603.4,0.52318405]
[1741171413782,3.10277121,604.49,603.4,0.52318405]
[1741171414182,3.10277121,604.48,603.4,0.52318405]
[1741171414781,3.10277121,604.47,603.4,0.52318405]
[1741171415182,3.10277121,604.46,603.4,0.52318405]
[1741171415382,3.3909294,604.46,603.4,0.52318405]
[1741171415884,3.10277121,604.45,603.4,0.52318405]
[1741171416185,3.10277121,604.44,603.4,0.52318405]
[1741171417180,3.10277121,604.43,603.4,0.52318405]
[1741171417590,3.10277121,604.42,603.4,0.52318405]
[1741171417984,3.10277121,604.41,603.4,0.52318405]
[1741171418389,0.28823695,604.4,603.4,0.52318405]
[1741171418781,3.10277121,604.39,603.4,0.52318405]
[1741171419786,3.10277121,604.38,603.4,0.52318405]
[1741171420490,0.28822382,604.37,603.4,0.52318405]
[1741171420691,3.39099503,604.37,603.4,0.52318405]
[1741171421386,3.10277121,604.36,603.4,0.52318405]
[1741171422389,3.10277121,604.35,603.4,0.52318405]
[1741171422789,3.10277121,604.34,603.4,0.52318405]
[1741171423590,0.28824769,604.33,603.4,0.52318405]
[1741171423791,3.3910189,604.33,603.4,0.52318405]
[1741171424191,3.10277121,604.32,603.4,0.52318405]
[1741171424791,3.10277121,604.31,603.4,0.52318405]
[1741171425188,3.10277121,604.3,603.4,0.52318405]
[1741171425797,3.10277121,604.29,603.4,0.52318405]
[1741171425993,3.10277121,604.28,603.4,0.52318405]
[1741171426294,3.10277121,604.27,603.4,0.52318405]
[1741171426595,3.10277121,604.26,603.4,0.52318405]
[1741171427295,3.10277121,604.25,603.4,0.52318405]
[1741171427895,3.10277121,604.24,603.4,0.52318405]
[1741171428301,3.10277121,604.23,603.4,0.52318405]
[1741171428698,3.10277121,604.22,603.4,0.52318405]
[1741171429399,0.28830501,604.21,603.4,0.52318405]
[1741171429601,3.39107622,604.21,603.4,0.52318405]
[1741171430004,3.10277121,604.2,603.4,0.52318405]
[1741171430800,3.10277121,604.19,603.4,0.52318405]
[1741171431603,3.10277121,604.18,603.4,0.52318405]
[1741171432105,3.10277121,604.17,603.4,0.52318405]
[1741171432505,3.10277121,604.16,603.4,0.52318405]
[1741171433099,3.10277121,604.15,603.4,0.52318405]
[1741171433505,3.10277121,604.14,603.4,0.52318405]
[1741171434105,3.10277121,604.13,603.4,0.52318405]
[1741171435105,3.10277121,604.12,603.4,0.52318405]
[1741171435900,3.10277121,604.11,603.4,0.52318405]
[1741171436506,0.28831098,604.1,603.4,0.52318405]
[1741171436708,3.39108219,604.1,603.4,0.52318405]
[1741171437307,3.10277121,604.09,603.4,0.52318405]
[1741171437806,1.19337354,604.08,603.4,0.52318405]
[1741171438007,3.10277121,604.08,603.4,0.52318405]
[1741171438212,3.10277121,604.07,603.4,0.52318405]
[1741171438902,3.10277121,604.06,603.4,0.52318405]
[1741171439102,3.43386414,604.06,603.4,0.52318405]
[1741171439407,0.28832173,604.05,603.4,0.52318405]
[1741171439608,3.39109294,604.05,603.4,0.52318405]
[1741171439805,3.72219135,604.05,603.4,0.52318405]
[1741171440004,0.3311039,604.04,603.4,0.52318405]
[1741171440207,3.10277121,604.03,603.4,0.52318405]
[1741171440415,0.33111486,604.02,603.4,0.52318405]
[1741171440909,3.10277121,604.01,603.4,0.52318405]
[1741171441104,3.10277121,604.0,603.4,0.52318405]
[1741171441913,3.10277121,603.99,603.4,0.52318405]
[1741171442410,0.33111486,604.02,603.4,0.52318405]
[1741171442411,3.10277121,603.98,603.4,0.52318405]
[1741171443016,3.10277121,603.97,603.4,0.52318405]
[1741171443505,3.10277121,603.96,603.4,0.52318405]
[1741171444010,3.10277121,603.95,603.4,0.52318405]
[1741171444512,3.43392993,603.94,603.4,0.52318405]
[1741171444911,3.39125547,603.93,603.4,0.52318405]
[1741171445510,3.10277121,603.92,603.4,0.52318405]
[1741171446111,3.10277121,603.91,603.4,0.52318405]
[1741171446417,3.10277121,603.9,603.4,0.52318405]
[1741171446614,0.33118614,603.89,603.4,0.52318405]
[1741171447513,3.10277121,603.88,603.4,0.52318405]
[1741171448312,3.10277121,603.87,603.4,0.52318405]
[1741171448511,3.39125427,603.87,603.4,0.52318405]
[1741171449014,3.10277121,603.86,603.4,0.52318405]
[1741171449214,0.33120808,603.85,603.4,0.52318405]
[1741171449509,1.19337354,603.84,603.4,0.52318405]
[1741171449715,0.33121905,603.83,603.4,0.27418405]
[1741171450014,3.10277121,603.82,603.4,0.27418405]
[1741171450215,0.33123002,603.81,603.4,0.27418405]
[1741171451115,3.10277121,603.8,603.4,0.27418405]
[1741171451316,0.33124099,603.79,603.4,0.27418405]
[1741171451713,3.10277121,603.78,603.4,0.27418405]
[1741171451916,0.33125196,603.77,603.4,0.27418405]
[1741171452315,3.10277121,603.76,603.4,0.27418405]
[1741171452509,0.33126293,603.75,603.4,0.27418405]
[1741171452714,3.43403414,603.75,603.4,0.27418405]
[1741171453415,3.10277121,603.74,603.4,0.27418405]
[1741171453616,3.10277121,603.73,603.4,0.27418405]
[1741171454015,0.3312794,603.72,603.4,0.27418405]
[1741171454208,3.43405061,603.72,603.4,0.27418405]
[1741171454919,3.10277121,603.71,603.4,0.27418405]
[1741171455318,3.43406158,603.7,603.4,0.27418405]
[1741171455517,0.33129586,603.69,603.4,0.27418405]
[1741171455917,3.10277121,603.68,603.4,0.27418405]
[1741171456118,0.33130683,603.67,603.4,0.27418405]
[1741171456319,3.10277121,603.66,603.4,0.27418405]
[1741171456617,0.33131781,603.65,603.4,0.27418405]
[1741171457520,3.10277121,603.64,603.4,0.27418405]
[1741171457721,0.33132879,603.63,603.4,0.27418405]
[1741171457918,3.10277121,603.62,603.4,0.27418405]
[1741171458520,3.43411098,603.61,603.4,0.27418405]
[1741171458725,0.33134526,603.6,603.3,0.249]
[1741171459327,3.10277121,603.59,603.3,0.249]
[1741171459825,0.33135624,603.58,603.3,0.249]
[1741171460024,3.43412745,603.58,603.3,0.249]
[1741171460522,1.4820696,603.57,603.3,0.249]
[1741171460825,0.33136722,603.56,603.3,0.249]
[1741171461126,1.19337354,603.55,603.3,0.249]
[1741171461331,0.3313782,603.54,603.3,0.249]
[1741171461826,1.19337354,603.53,603.3,0.249]
[1741171462134,1.52476272,603.52,603.3,0.249]
[1741171462324,0.33139467,603.51,603.3,0.249]
[1741171462524,1.52476821,603.51,603.3,0.249]
[1741171463025,1.19337354,603.5,603.3,0.249]
[1741171463232,0.33140565,603.49,603.3,0.249]
[1741171463827,1.19337354,603.48,603.3,0.249]
[1741171464025,0.33141664,603.47,603.3,0.249]
[1741171464324,1.19337354,603.46,603.3,0.249]
[1741171464529,0.33142762,603.45,603.3,0.249]
[1741171464925,1.52480116,603.45,603.3,0.249]
[1741171465624,1.19337354,603.44,603.3,0.249]
[1741171465829,0.3314386,603.43,603.3,0.249]
[1741171466228,1.19337354,603.42,603.3,0.249]
[1741171466524,1.48207199,603.42,603.3,0.249]
[1741171466829,1.19337354,603.41,603.3,0.249]
[1741171468128,1.19337354,603.4,603.3,0.249]
[1741171469130,1.19337354,603.39,603.3,0.249]
[1741171469436,1.19337354,603.38,603.3,0.249]
[1741171469729,0.33147156,603.37,603.3,0.249]
[1741171469929,1.19337354,603.36,603.3,0.249]
[1741171470431,1.19337354,603.35,601.63,1.21098633]
[1741171470629,1.19337354,603.35,602.01,0.28879069]
[1741171470929,1.19337354,603.35,601.63,1.21098633]
[1741171471126,1.19337354,603.34,601.63,1.21098633]
[1741171471333,1.19337354,603.34,601.66,1.21098633]
[1741171471527,1.48217621,603.34,601.66,1.21098633]
[1741171471830,1.19337354,603.33,601.66,1.21098633]
[1741171472327,1.19337354,603.32,601.67,0.33240813]
[1741171473031,1.19337354,603.31,601.67,0.33240813]
[1741171474135,1.19337354,603.3,601.67,0.33240813]
[1741171474333,1.48216543,603.3,601.67,0.33240813]
[1741171474928,0.33151552,603.29,601.67,0.33240813]
[1741171475535,1.19337354,603.28,601.67,0.33240813]
[1741171475734,0.33152651,603.27,601.67,0.33240813]
[1741171476034,1.19337354,603.26,601.67,0.33240813]
[1741171476235,0.3315375,603.25,601.67,0.33240813]
[1741171476829,1.19337354,603.24,601.67,0.33240813]
[1741171477035,0.33154849,603.23,601.67,0.33240813]
[1741171477234,1.52492203,603.23,601.67,0.33240813]
[1741171477934,1.19337354,603.22,601.67,0.33240813]
[1741171478135,0.33155949,603.21,601.67,0.33240813]
[1741171478531,1.19337354,603.2,601.67,0.33240813]
[1741171478734,1.52494402,603.19,601.67,0.33240813]
[1741171479034,0.33157598,603.18,601.67,0.33240813]
[1741171479437,1.19337354,603.17,601.67,0.33240813]
[1741171479634,0.33158697,603.16,601.67,0.33240813]
[1741171479834,1.19337354,603.15,601.67,0.33240813]
[1741171480035,0.33159797,603.14,601.67,0.33240813]
[1741171480234,1.52497151,603.14,601.67,0.33240813]
[1741171480936,1.19337354,603.13,601.67,0.33240813]
[1741171481133,0.33160896,603.12,601.67,0.33240813]
[1741171481739,1.19337354,603.11,601.67,0.33240813]
[1741171481940,0.33161996,603.1,601.67,0.33240813]
[1741171482342,1.19337354,603.09,601.67,0.33240813]
[1741171482540,0.33163096,603.08,601.67,0.33240813]
[1741171483041,1.19337354,603.07,601.67,0.33240813]
[1741171483238,0.33164195,603.06,601.67,0.33240813]
[1741171483540,1.19337354,603.05,601.67,0.33240813]
[1741171483740,0.33165295,603.04,601.67,0.33240813]
[1741171484336,1.19337354,603.03,601.67,0.33240813]
[1741171484536,0.33166395,603.02,601.67,0.33240813]
[1741171485040,1.19337354,603.01,601.67,0.33240813]
[1741171485340,0.33167495,603.0,601.67,0.33240813]
[1741171486342,0.28887819,602.99,601.67,0.33240813]
[1741171487044,0.33168595,602.98,601.67,0.33240813]
[1741171489344,0.28883503,602.97,601.67,0.33240813]
[1741171489845,0.28883503,602.97,601.79,1.21098633]
[1741171490145,0.28883503,602.97,601.8,0.33233632]
[1741171492148,0.33168595,602.98,601.8,0.33233632]
[1741171492343,0.28882065,602.96,601.8,0.33233632]
[1741171495247,0.33168595,602.98,601.8,0.33233632]
[1741171495942,0.33168595,602.98,601.8,1.54332265]
[1741171496449,0.2887248,602.97,601.8,1.54332265]
[1741171498047,0.2887248,602.97,601.8,0.33233632]
[1741171499648,0.2887248,602.97,601.99,1.21098633]
[1741171501252,0.33168595,602.98,601.99,1.21098633]
[1741171501453,0.33168595,602.98,601.99,1.54321776]
[1741171501653,1.19337354,603.81,601.99,1.54321776]
[1741171501953,0.33124099,603.79,602.0,0.33222591]
[1741171502152,1.19337354,603.78,602.0,0.33222591]
[1741171502455,0.33125745,603.76,602.09,1.21098633]
[1741171502754,1.19337354,603.75,602.09,1.21098633]
[1741171503055,0.33127391,603.73,602.09,1.21098633]
[1741171503250,1.19337354,603.72,602.09,1.21098633]
[1741171504054,1.19337354,603.71,602.09,1.21098633]
[1741171504255,1.19337354,603.71,602.33,1.21098633]
[1741171504449,0.33129586,603.69,602.33,1.21098633]
[1741171504850,1.19337354,603.68,602.33,1.21098633]
[1741171505155,0.33131232,603.66,602.33,1.21098633]
[1741171505556,1.19337354,603.65,602.33,1.21098633]
[1741171505854,0.33132879,603.63,602.33,1.21098633]
[1741171506353,1.19337354,603.62,602.33,1.21098633]
[1741171506750,0.33134526,603.6,602.33,1.21098633]
[1741171507357,1.19337354,603.59,602.33,1.21098633]
[1741171507553,0.33136173,603.57,602.33,1.21098633]
[1741171508255,1.19337354,603.56,602.33,1.21098633]
[1741171508452,1.19337354,603.56,602.29,1.21098633]
[1741171508649,1.19337354,603.55,602.29,1.21098633]
[1741171509156,1.19337354,603.54,602.29,1.21098633]
[1741171509755,0.33138918,603.52,602.29,1.21098633]
[1741171510255,1.19337354,603.51,602.29,1.21098633]
[1741171510457,0.33140565,603.49,602.29,1.21098633]
[1741171510656,0.33140565,603.49,602.09,0.2886326]
[1741171510949,1.19337354,603.48,602.09,0.2886326]
[1741171511557,0.33142213,603.46,602.09,0.2886326]
[1741171512055,1.19337354,603.45,602.09,0.2886326]
[1741171512655,1.19337354,603.44,602.09,0.2886326]
[1741171513057,1.19337354,603.44,602.22,1.21098633]
[1741171513254,0.28862901,603.59,602.22,1.21098633]
[1741171513255,0.3314441,603.42,602.22,1.21098633]
[1741171513555,1.19337354,603.41,602.22,1.21098633]
[1741171513756,0.33146058,603.39,602.22,1.21098633]
[1741171514256,1.19337354,603.38,602.22,1.21098633]
[1741171514459,0.33147156,603.37,602.22,1.21098633]
[1741171515057,1.19337354,603.36,602.23,1.21098633]
[1741171515657,1.19337354,603.35,602.23,1.21098633]
[1741171516358,1.19337354,603.34,602.23,1.21098633]
[1741171516554,1.48212589,603.34,602.23,1.21098633]
[1741171516759,1.19337354,603.33,602.23,1.21098633]
[1741171517059,1.19337354,603.33,602.02,1.21098633]
[1741171517258,1.19337354,603.32,602.02,1.21098633]
[1741171517452,1.19337354,603.31,602.02,1.21098633]
[1741171517857,1.19337354,603.3,602.02,1.21098633]
[1741171518457,1.19337354,603.29,602.02,1.21098633]
[1741171518958,1.19337354,603.28,602.02,1.21098633]
[1741171519360,0.33147156,603.37,601.9,1.21098633]
[1741171519361,1.19337354,603.27,601.9,1.21098633]
[1741171520055,1.19337354,603.26,601.9,1.21098633]
[1741171520459,1.48219419,603.26,601.9,1.21098633]
[1741171520660,1.19337354,603.25,601.9,1.21098633]
[1741171521262,1.19337354,603.24,601.9,1.21098633]
[1741171521658,0.28882065,603.26,601.81,0.28882424]
[1741171521659,1.19337354,603.23,601.92,1.21098633]
[1741171522360,1.19337354,603.22,601.92,1.21098633]
[1741171523059,1.19337354,603.21,601.92,1.21098633]
[1741171523362,1.48222176,603.21,601.92,1.21098633]
[1741171523559,1.19337354,603.2,601.92,1.21098633]
[1741171523755,1.19337354,603.2,601.76,0.28883743]
[1741171523961,1.19337354,603.2,601.68,1.21098633]
[1741171524255,1.19337354,603.19,601.68,1.21098633]
[1741171525060,1.19337354,603.18,601.68,1.21098633]
[1741171525260,0.33158697,603.16,601.68,1.21098633]
[1741171525661,1.19337354,603.15,601.68,1.21098633]
[1741171526057,1.19337354,603.14,601.68,1.21098633]
[1741171526263,1.19337354,603.14,601.55,0.28892016]
[1741171526662,1.19337354,603.13,601.57,0.33246338]
[1741171527557,1.19337354,603.12,601.57,0.33246338]
[1741171529262,1.19337354,603.11,601.57,0.33246338]
[1741171529762,1.19337354,603.1,601.57,0.33246338]
[1741171530362,1.19337354,603.09,601.57,0.33246338]
[1741171530868,0.33158697,603.16,601.64,2.47243044]
[1741171531061,0.33158697,603.16,602.02,1.21098633]
[1741171531265,0.33158697,603.16,602.03,0.33220935]
[1741171531565,1.18840306,603.15,602.03,0.33220935]
[1741171531967,1.18840306,603.14,602.03,0.33220935]
[1741171532266,1.18840306,603.13,602.03,0.33220935]
[1741171532869,1.18840306,603.12,602.03,0.33220935]
[1741171533167,1.18840306,603.11,602.09,1.21098633]
[1741171533365,1.18840306,603.1,602.09,1.21098633]
[1741171533666,1.47714103,603.1,602.09,1.21098633]
[1741171534067,1.18840306,603.09,602.09,1.21098633]
[1741171534765,1.18840306,603.08,602.09,1.21098633]
[1741171534960,1.18840306,603.08,602.03,0.33220935]
[1741171535161,1.18840306,603.07,602.03,0.33220935]
[1741171535467,1.18840306,603.06,602.03,0.33220935]
[1741171536069,1.47721652,603.05,602.03,0.33220935]
[1741171537071,1.18840306,603.04,602.03,0.33220935]
[1741171537472,1.18840306,603.03,602.03,0.33220935]
[1741171537772,1.4772333,603.03,602.03,0.33220935]
[1741171538271,1.18840306,603.02,602.03,0.33220935]
[1741171539273,1.52007251,603.01,602.03,0.33220935]
[1741171539469,0.33167495,603.0,601.88,0.28885421]
[1741171539671,1.52007801,603.0,601.88,0.28885421]
[1741171540168,1.52007801,603.0,601.87,1.21098633]
[1741171540169,1.52007801,603.0,601.85,1.21098633]
[1741171540373,1.18840306,602.99,601.85,1.21098633]
[1741171540573,1.47724049,602.99,601.88,0.28883743]
[1741171540774,1.47724049,602.99,601.89,0.33228663]
[1741171541374,1.18840306,602.98,601.89,0.33228663]
[1741171542075,1.18840306,602.97,601.89,0.33228663]
[1741171542975,0.28883743,602.99,601.89,0.33228663]
[1741171543175,0.33167495,603.0,601.89,0.33228663]
[1741171543377,1.4618607,604.47,601.89,0.33228663]
[1741171543577,0.33093406,604.35,601.89,0.33228663]
[1741171544277,1.18787002,604.34,601.89,0.33228663]
[1741171544477,1.47644398,604.34,601.89,0.33228663]
[1741171544679,1.18787002,604.33,602.14,1.21098633]
[1741171545275,1.18787002,604.32,602.14,1.21098633]
[1741171545681,1.18787002,604.31,602.14,1.21098633]
[1741171545976,1.18787002,604.3,602.14,1.21098633]
[1741171546675,1.18787002,604.29,602.14,1.21098633]
[1741171546875,1.18787002,604.29,602.09,1.21098633]
[1741171547375,1.47641647,604.28,602.09,1.21098633]
[1741171547580,1.18787002,604.27,602.09,1.21098633]
[1741171547876,1.18787002,604.26,602.09,1.21098633]
[1741171548284,1.18787002,604.25,602.09,1.21098633]
[1741171548582,1.18787002,604.25,601.96,1.49953278]
[1741171548981,1.18787002,604.24,601.96,1.49953278]